bitfinex/quotes_BTCUSD_20250512
["timestamp","ask_amount","ask_price","bid_price","bid_amount"]
[1747080049086,1.69556621,101920.0,101910.0,0.0333]
[1747080049320,1.69556621,101920.0,101910.0,0.0182]
[1747080050704,1.69556621,101920.0,101910.0,0.0347]
[1747080051186,1.39556621,101920.0,101910.0,0.0347]
[1747080051424,1.04853322,101920.0,101910.0,0.0347]
[1747080051696,1.39612621,101920.0,101910.0,0.0347]
[1747080052153,1.30027191,101920.0,101910.0,0.0347]
[1747080052849,0.76167191,101920.0,101910.0,0.04329713]
[1747080053064,0.96023191,101920.0,101910.0,0.04329713]
[1747080054154,0.75250532,101920.0,101910.0,0.04329713]
[1747080054354,0.95102532,101920.0,101910.0,0.04329713]
[1747080054568,0.55326532,101920.0,101910.0,0.04329713]
[1747080054790,0.95026532,101920.0,101910.0,0.04329713]
[1747080055014,0.60323233,101920.0,101910.0,0.06921652]
[1747080055229,0.60311233,101920.0,101910.0,0.06921652]
[1747080055840,0.40475233,101920.0,101910.0,0.2493612]
[1747080056072,0.60323233,101920.0,101910.0,0.23954872]
[1747080056253,0.20623233,101920.0,101910.0,0.04329713]
[1747080056423,0.41379078,101920.0,101910.0,0.04329713]
[1747080057658,0.21539078,101920.0,101910.0,0.04329713]
[1747080057982,0.41359078,101920.0,101910.0,0.04329713]
[1747080058152,0.75146532,101920.0,101910.0,0.04329713]
[1747080058557,0.75150532,101920.0,101910.0,0.04329713]
[1747080058752,0.55326532,101920.0,101910.0,0.04329713]
[1747080059049,0.40443233,101920.0,101910.0,0.04329713]
[1747080059315,0.41359078,101920.0,101910.0,0.07117903]
[1747080059691,0.41359078,101920.0,101910.0,0.27724319]
[1747080059907,0.40451233,101920.0,101910.0,0.38290987]
[1747080060281,0.01,101920.0,101910.0,0.38290987]
[1747080060643,0.43386649,101920.0,101910.0,0.39272206]
[1747080060992,0.01981075,101920.0,101910.0,0.75937895]
[1747080061197,0.02962187,101920.0,101910.0,1.09937895]
[1747080061455,0.01962197,101920.0,101910.0,0.75134596]
[1747080061660,0.01081084,101920.0,101910.0,0.76734596]
[1747080061871,0.19723233,101920.0,101910.0,0.49415143]
[1747080062076,0.19723233,101920.0,101910.0,0.73883978]
[1747080062077,0.02062235,101920.0,101910.0,0.73883978]
[1747080062236,0.03043377,101920.0,101910.0,0.74865197]
[1747080063043,0.04024443,101920.0,101910.0,0.74865197]
[1747080063458,0.03043301,101920.0,101910.0,0.74865197]
[1747080063734,0.04024443,101920.0,101910.0,0.84450627]
[1747080063971,0.05005575,101920.0,101910.0,0.84450627]
[1747080064304,0.24628808,101920.0,101910.0,0.84450627]
[1747080064526,0.040245,101920.0,101910.0,0.74865197]
[1747080064897,0.040245,101920.0,101910.0,0.40865197]
[1747080065123,0.05005652,101920.0,101910.0,0.40865197]
[1747080065384,0.22666659,101920.0,101910.0,0.3792154]
[1747080065673,0.22666659,101920.0,101910.0,0.38902759]
[1747080066130,0.22666659,101920.0,101910.0,0.36940302]
[1747080066339,0.21685527,101920.0,101910.0,0.38902788]
[1747080066785,0.20704385,101920.0,101910.0,0.07729713]
[1747080066992,0.55407684,101920.0,101910.0,0.07729713]
[1747080067444,0.20704385,101920.0,101910.0,0.07729713]
[1747080067691,0.20704385,101920.0,101910.0,0.27354872]
[1747080067931,0.20704385,101920.0,101910.0,0.07729713]
[1747080068450,0.20704385,101920.0,101910.0,0.28336129]
[1747080068685,0.20704385,101920.0,101910.0,0.07729713]
[1747080068907,0.75203684,101920.0,101910.0,0.07729713]
[1747080069368,0.40500385,101920.0,101910.0,0.07729713]
[1747080069577,0.39519233,101920.0,101910.0,0.31243215]
[1747080069793,0.001,101920.0,101910.0,0.42791035]
[1747080070009,0.02062178,101920.0,101910.0,0.77494334]
[1747080070216,0.01081075,101920.0,101910.0,0.42791035]
[1747080070655,0.02062159,101920.0,101910.0,0.76791035]
[1747080070863,0.03043262,101920.0,101910.0,0.76791035]
[1747080071039,0.01081075,101920.0,101910.0,0.76791035]
[1747080071290,0.001,101920.0,101910.0,0.7824512]
[1747080071537,0.001,101920.0,101910.0,1.12948419]
[1747080072219,0.001,101920.0,101910.0,1.32792419]
[1747080072860,0.001,101920.0,101910.0,2.07495718]
[1747080073491,0.61216344,101950.0,101940.0,0.23950985]
[1747080073492,0.41364344,101950.0,101940.0,0.23950985]
[1747080073785,0.21607023,101950.0,101940.0,0.39817786]
[1747080073985,0.21607023,101950.0,101940.0,0.39817795]
[1747080074196,0.20626189,101950.0,101940.0,0.39817795]
[1747080074428,0.20626189,101950.0,101940.0,0.38836846]
[1747080074640,0.20626189,101950.0,101940.0,0.18236504]
[1747080074871,0.20626189,101950.0,101940.0,0.37955887]
[1747080075088,0.20626189,101950.0,101940.0,0.38936836]
[1747080075302,0.21607023,101950.0,101940.0,0.18336504]
[1747080075689,0.20626189,101950.0,101940.0,0.38936856]
[1747080075825,0.20626189,101950.0,101940.0,0.18336504]
[1747080076044,0.20626189,101950.0,101940.0,0.13685143]
[1747080076269,0.21593835,101950.0,101940.0,0.36443535]
[1747080076515,0.22574707,101950.0,101940.0,0.37228286]
[1747080076750,0.22574707,101950.0,101940.0,0.36247365]
[1747080076991,0.21593873,101950.0,101940.0,0.45402486]
[1747080077213,0.21593873,101950.0,101940.0,0.44421556]
[1747080077464,0.2061301,101950.0,101940.0,0.43440616]
[1747080077707,0.00995465,101950.0,101940.0,0.8155987]
[1747080077939,0.17870692,101960.0,101950.0,0.00859713]
[1747080078217,0.17919611,101960.0,101950.0,0.35174299]
[1747080078460,0.17919611,101960.0,101950.0,0.44759729]
[1747080078696,0.17919611,101960.0,101950.0,0.45740563]
[1747080079455,0.00048919,101960.0,101950.0,1.16397947]
[1747080079668,0.02991056,101960.0,101950.0,0.82675453]
[1747080079919,0.02010318,101960.0,101950.0,1.17378752]
[1747080080373,0.02991037,101960.0,101950.0,1.17378752]
[1747080080849,0.02010308,101960.0,101950.0,1.17378752]
[1747080081091,0.02991036,101960.0,101950.0,1.17378752]
[1747080081329,0.00048919,101960.0,101950.0,1.37818752]
[1747080081592,0.01960889,101990.0,101980.0,0.2243252]
[1747080081843,0.01960889,101990.0,101980.0,1.0927233]
[1747080081844,0.00014667,101990.0,101980.0,1.0927233]
[1747080082119,0.00014667,101990.0,101980.0,1.10726415]
[1747080082343,0.00995068,101990.0,101980.0,1.10726415]
[1747080082847,0.02955909,101990.0,101980.0,1.10726415]
[1747080083552,0.00014667,101990.0,101980.0,1.10726415]
[1747080084430,0.00014667,101990.0,101980.0,1.11226415]
[1747080084660,0.00014667,101990.0,101980.0,1.51226415]
[1747080084892,0.00014667,101990.0,101980.0,1.51826415]
[1747080085106,0.00014667,101990.0,101980.0,1.54726415]
[1747080085533,0.00014667,101990.0,101980.0,1.52826415]
[1747080085972,0.00014667,101990.0,101980.0,1.54826415]
[1747080086649,0.00014667,101990.0,101980.0,1.53826415]
[1747080086865,0.00014667,101990.0,101980.0,1.54826415]
[1747080087111,0.00014667,101990.0,101980.0,1.53726415]
[1747080087329,0.00014667,101990.0,101980.0,1.52726415]
[1747080087536,0.00014667,101990.0,101980.0,1.54026415]
[1747080087749,0.00014667,101990.0,101980.0,1.15163403]
[1747080087964,0.00014667,101990.0,101980.0,1.47725851]
[1747080088171,0.00014667,101990.0,101980.0,1.50025851]
[1747080088854,0.00014667,101990.0,101980.0,1.50035851]
[1747080089058,0.00014667,101990.0,101980.0,1.51736836]
[1747080092066,0.00995078,101990.0,101980.0,0.62825537]
[1747080092308,0.00014667,101990.0,101980.0,1.38615758]
[1747080092537,0.00014667,101990.0,101980.0,1.78615758]
[1747080092756,0.00014667,101990.0,101980.0,1.38615758]
[1747080092991,0.00014667,101990.0,101980.0,1.03912459]
[1747080093196,0.00014667,101990.0,101980.0,1.78615758]
[1747080093404,0.00014667,101990.0,101980.0,1.38615758]
[1747080094102,0.00014667,101990.0,101980.0,1.78615758]
[1747080096276,0.00014667,101990.0,101980.0,1.71528836]
[1747080097173,0.01975518,101990.0,101980.0,0.95371452]
[1747080097384,0.01975518,101990.0,101980.0,0.77033537]
[1747080097605,0.01975576,101990.0,101980.0,0.75579481]
[1747080097819,0.01975576,101990.0,101980.0,0.76559998]
[1747080098266,0.21585341,101990.0,101980.0,0.17496128]
[1747080098496,0.871473,101990.0,101980.0,0.0371]
[1747080098720,0.871473,101990.0,101980.0,0.04569713]
[1747080098943,0.9673273,101990.0,101980.0,0.04569713]
[1747080099165,0.9673273,101990.0,101980.0,0.0371]
[1747080099384,1.87641245,101990.0,101980.0,0.0371]
[1747080099605,1.90785824,101990.0,101980.0,0.04569713]
[1747080099835,1.90785824,101990.0,101980.0,0.02369713]
[1747080100267,1.90785824,101990.0,101980.0,0.0151]
[1747080100268,2.10697824,101990.0,101980.0,0.0151]
[1747080100480,2.10697824,101990.0,101980.0,0.00969713]
[1747080100923,2.79401123,101990.0,101980.0,0.0021]
[1747080101138,2.44697824,101990.0,101980.0,0.0021]
[1747080101612,2.36831164,101990.0,101980.0,0.0021]
[1747080101843,2.73988548,101990.0,101980.0,0.0021]
[1747080102062,2.73988548,101990.0,101950.0,0.05479739]
[1747080102063,0.59380319,101960.0,101950.0,0.05479739]
[1747080102290,0.98988319,101960.0,101950.0,0.05479739]
[1747080102477,0.99896834,101960.0,101950.0,0.05479739]
[1747080102843,0.98396834,101960.0,101950.0,0.05479739]
[1747080103052,0.62093535,101960.0,101950.0,0.05479739]
[1747080103368,0.62093535,101960.0,101950.0,0.10085795]
[1747080103572,0.62093535,101960.0,101950.0,0.08185795]
[1747080103962,0.62193535,101960.0,101950.0,0.10385795]
[1747080104121,0.62193535,101960.0,101950.0,0.04165769]
[1747080104122,0.6118502,101960.0,101950.0,0.04165769]
[1747080104276,0.6118502,101960.0,101950.0,0.04465769]
[1747080104889,0.21753485,101960.0,101950.0,0.26044944]
[1747080105160,0.62165787,101960.0,101950.0,0.38121208]
[1747080105373,0.43350563,101960.0,101950.0,0.35944318]
[1747080105588,0.43350563,101960.0,101950.0,0.34963474]
[1747080105807,0.76092377,101960.0,101950.0,0.01759713]
[1747080106230,0.41389078,101960.0,101950.0,0.01759713]
[1747080109249,0.41389078,101960.0,101950.0,0.25498044]
[1747080110023,0.41389078,101960.0,101950.0,0.26478897]
[1747080110608,0.41389078,101960.0,101950.0,0.3593082]
[1747080110811,0.19613611,101970.0,101960.0,0.20475248]
[1747080110993,0.39409611,101970.0,101960.0,0.00859713]
[1747080111445,0.39409611,101970.0,101960.0,0.20475248]
[1747080111623,0.39409611,101970.0,101960.0,0.00859713]
[1747080112016,0.40939611,101980.0,101960.0,0.23417432]
[1747080112216,0.41354923,101970.0,101960.0,0.22436743]
[1747080112418,0.42835545,101970.0,101960.0,0.21456005]
[1747080112652,0.23055545,101970.0,101960.0,0.21456005]
[1747080112859,0.22713934,101970.0,101960.0,0.28552098]
[1747080113007,0.43308225,101970.0,101960.0,0.30142098]
[1747080113395,0.43327603,101970.0,101960.0,0.30242098]
[1747080113616,0.22729216,101970.0,101960.0,0.40808237]
[1747080113850,0.23709858,101970.0,101960.0,0.40808237]
[1747080114075,0.015,101970.0,101960.0,0.40808237]
[1747080114298,0.02480603,101970.0,101960.0,0.40808237]
[1747080114487,0.02480603,101970.0,101960.0,0.74808237]
[1747080114488,0.02471691,101970.0,101960.0,0.74808237]
[1747080114705,0.01480594,101970.0,101960.0,0.74708237]
[1747080114985,0.005,101970.0,101960.0,1.09711536]
[1747080115649,0.02941598,101980.0,101970.0,0.26575249]
[1747080115945,0.03922163,101980.0,101970.0,0.45746109]
[1747080116118,0.02941598,101980.0,101970.0,0.45746109]
[1747080116335,0.20859126,101990.0,101980.0,0.24143324]
[1747080116587,0.20859126,101990.0,101980.0,0.2402252]
[1747080116588,0.4242979,101990.0,101980.0,0.2402252]
[1747080116768,0.4242979,101990.0,101980.0,0.02449713]
[1747080116769,0.2168536,101990.0,101980.0,0.02449713]
[1747080116980,0.4145336,101990.0,101980.0,0.20471401]
[1747080117158,0.4145336,101990.0,101980.0,0.28968318]
[1747080117360,0.42433848,101990.0,101980.0,0.44474829]
[1747080117753,0.22665848,101990.0,101980.0,0.44774829]
[1747080117957,0.22665848,101990.0,101980.0,0.45755355]
[1747080118172,0.00114667,101990.0,101980.0,0.80458587]
[1747080118373,0.01095078,101990.0,101980.0,0.80458587]
[1747080118624,0.00114667,101990.0,101980.0,0.80458587]
[1747080119031,0.00114667,101990.0,101980.0,0.3921952]
[1747080119032,0.01095087,101990.0,101980.0,0.3921952]
[1747080119240,0.02075536,101990.0,101980.0,0.3921952]
[1747080119445,0.02075536,101990.0,101980.0,0.3811952]
[1747080119646,0.01095087,101990.0,101980.0,0.4041952]
[1747080119893,0.02175527,101990.0,101980.0,0.4221952]
[1747080120316,0.00214667,101990.0,101980.0,0.5180495]
[1747080120568,0.00214667,101990.0,101980.0,1.21962334]
[1747080121014,0.00214667,101990.0,101980.0,1.41726334]
[1747080121536,0.00214667,101990.0,101980.0,0.77673605]
[1747080121746,0.01195087,101990.0,101980.0,0.7621952]
[1747080121946,0.00214667,101990.0,101980.0,1.10922819]
[1747080122968,0.00214667,101990.0,101980.0,1.1621952]
[1747080123427,0.03155957,101990.0,101980.0,1.15238994]
[1747080123652,0.03155947,101990.0,101980.0,0.75238994]
[1747080123871,0.01195068,101990.0,101980.0,0.75238994]
[1747080124088,0.02175488,101990.0,101980.0,0.84824424]
[1747080124327,0.00214667,101990.0,101980.0,1.19527723]
[1747080125202,0.00214667,101990.0,101980.0,1.20981808]
[1747080126125,0.03,102000.0,101990.0,0.62768209]
[1747080126126,0.02996001,102000.0,101990.0,0.62768209]
[1747080126347,0.02996001,102000.0,101990.0,1.01699069]
[1747080127402,0.03096001,102000.0,101990.0,1.03599069]
[1747080128164,0.03096001,102000.0,101990.0,1.05599069]
[1747080128385,0.03096001,102000.0,101990.0,1.45599069]
[1747080128712,0.03096001,102000.0,101990.0,1.47088552]
[1747080129203,0.03920577,102020.0,102010.0,0.26666404]
[1747080129204,0.01960255,102020.0,102010.0,0.26666404]
[1747080129377,0.03920567,102020.0,102010.0,0.45837264]
[1747080129586,0.01960265,102020.0,102010.0,0.45837264]
[1747080129990,0.30428947,102030.0,102020.0,0.22424082]
[1747080130198,0.30443611,102030.0,102020.0,0.32989673]
[1747080130394,0.01014664,102030.0,102020.0,0.78673255]
[1747080130613,0.01014664,102030.0,102020.0,1.12673255]
[1747080130828,0.01994681,102030.0,102020.0,1.12673255]
[1747080131662,0.01994681,102030.0,102020.0,1.14273255]
[1747080132270,0.01994681,102030.0,102020.0,1.07533104]
[1747080132469,0.02974717,102030.0,102020.0,0.72829805]
[1747080132711,0.01994681,102030.0,102020.0,0.72829805]
[1747080133057,0.01994681,102030.0,102020.0,0.75632479]
[1747080133440,0.01014664,102030.0,102020.0,0.75632479]
[1747080133656,0.01994681,102030.0,102020.0,0.85217909]
[1747080133894,0.01994681,102030.0,102020.0,0.75632479]
[1747080134100,0.01014664,102030.0,102020.0,1.15632479]
[1747080134309,0.01014664,102030.0,102020.0,1.51789863]
[1747080135147,0.01014664,102030.0,102020.0,1.50189863]
[1747080135348,0.01014664,102030.0,102020.0,1.51989863]
[1747080135589,0.01014664,102030.0,102020.0,1.61575293]
[1747080136014,0.01014664,102030.0,102020.0,1.60475293]
[1747080136158,0.01014664,102030.0,102020.0,1.61775293]
[1747080136943,0.02974746,102030.0,102020.0,1.17486564]
[1747080137156,0.01014664,102030.0,102020.0,1.37242564]
[1747080137807,0.019947,102030.0,102020.0,1.37242564]
[1747080138028,0.01014664,102030.0,102020.0,1.37242564]
[1747080138256,0.01014664,102030.0,102020.0,1.17486564]
[1747080138461,0.02974765,102030.0,102020.0,0.92528479]
[1747080138676,0.23556984,102030.0,102020.0,0.34851816]
[1747080138884,0.23556984,102030.0,102020.0,0.36812177]
[1747080139060,0.23556984,102030.0,102020.0,0.71792338]
[1747080139275,0.23556984,102030.0,102020.0,0.70812167]
[1747080139487,0.60410218,102030.0,102020.0,0.04802674]
[1747080139696,0.60410218,102030.0,102020.0,0.05662387]
[1747080140035,0.25706919,102030.0,102020.0,0.05662387]
[1747080141344,0.45474919,102030.0,102020.0,0.05662387]
[1747080141562,0.45474919,102030.0,102020.0,0.25266386]
[1747080142378,0.45474919,102030.0,102020.0,0.05662387]
[1747080143064,0.45474919,102030.0,102020.0,0.04802674]
[1747080143377,0.45474919,102030.0,102020.0,0.05662387]
[1747080143582,0.45474919,102030.0,102020.0,0.031]
[1747080143760,0.80178218,102030.0,102020.0,0.03959713]
[1747080144188,0.81089364,102030.0,102020.0,0.03959713]
[1747080145407,0.81089364,102030.0,102020.0,0.031]
[1747080145634,0.81089364,102030.0,102020.0,0.03959713]
[1747080146032,1.55378093,102030.0,102020.0,0.031]
[1747080146254,1.55378093,102030.0,102020.0,0.03959713]
[1747080146463,1.55378093,102030.0,102020.0,0.02159713]
[1747080146880,1.55378093,102030.0,102020.0,0.02559713]
[1747080147090,1.55378093,102030.0,102020.0,0.004]
[1747080147505,0.20584179,102020.0,102010.0,0.00859713]
[1747080147715,0.78233478,102020.0,102010.0,0.00859713]
[1747080148316,0.23529237,102000.0,101990.0,0.5809614]
[1747080148551,0.23529237,102000.0,101990.0,0.6866202]
[1747080148965,0.22548932,102000.0,101990.0,0.57115691]
[1747080149157,0.22548932,102000.0,101990.0,0.5809615]
[1747080149945,0.22548932,102000.0,101990.0,0.5919615]
[1747080150147,0.21568598,102000.0,101990.0,0.37625523]
[1747080150348,0.21568598,102000.0,101990.0,0.012]
[1747080150349,0.57901897,102000.0,101990.0,0.012]
[1747080150551,0.57901897,102000.0,101990.0,0.029]
[1747080150749,0.59531897,102000.0,101990.0,0.03759713]
[1747080150962,0.94235196,102000.0,101990.0,0.03759713]
[1747080151169,1.24467772,102000.0,101990.0,0.029]
[1747080151365,1.58467772,102000.0,101990.0,0.029]
[1747080151567,1.88467772,102000.0,101990.0,0.029]
[1747080151777,2.19921857,102000.0,101990.0,0.029]
[1747080152192,2.19921857,102000.0,101990.0,0.018]
[1747080152436,2.19921857,102000.0,101990.0,0.001]
[1747080152755,1.90921857,102000.0,101990.0,0.005]
[1747080153046,1.90921857,102000.0,101990.0,0.006]
[1747080153591,1.90921857,102000.0,101990.0,0.002]
[1747080153592,1.61062144,102000.0,101990.0,0.002]
[1747080153799,0.23224904,101970.0,101960.0,0.05479739]
[1747080153998,0.97448203,101970.0,101960.0,0.05479739]
[1747080154648,0.97448203,101970.0,101960.0,0.04620026]
[1747080154854,1.43256932,101970.0,101960.0,0.04620026]
[1747080155114,1.43256932,101970.0,101960.0,0.05734693]
[1747080155329,1.77256932,101970.0,101960.0,0.05734693]
[1747080155943,1.77256932,101970.0,101960.0,0.04634693]
[1747080156371,1.77256932,101970.0,101960.0,0.06434693]
[1747080156914,1.78711017,101970.0,101960.0,0.00114667]
[1747080157141,1.78711017,101970.0,101920.0,0.12486686]
[1747080157142,0.21583371,101930.0,101920.0,0.12486686]
[1747080157345,0.7605467,101930.0,101920.0,0.12535605]
[1747080157550,0.7605467,101930.0,101920.0,0.13395318]
[1747080158073,0.41351371,101930.0,101920.0,0.13395318]
[1747080158317,0.7605467,101930.0,101920.0,0.05528658]
[1747080158516,0.7605467,101930.0,101920.0,0.07228658]
[1747080158895,0.7615467,101930.0,101920.0,0.07228658]
[1747080159430,0.7625467,101930.0,101920.0,0.09428658]
[1747080160276,0.7625467,101930.0,101920.0,0.08568945]
[1747080160622,0.7625467,101930.0,101920.0,0.09428658]
[1747080163573,0.7625467,101930.0,101920.0,0.09428658]
[1747080163930,0.7615467,101930.0,101920.0,0.07228658]
[1747080164133,0.5638667,101930.0,101920.0,0.07228658]
[1747080164359,0.9580267,101930.0,101920.0,0.05528658]
[1747080164697,0.9590267,101930.0,101920.0,0.07028658]
[1747080165318,0.9600267,101930.0,101920.0,0.09128658]
[1747080165743,0.95021624,101930.0,101920.0,0.09128658]
[1747080166738,0.9600267,101930.0,101920.0,0.09128658]
[1747080168256,0.21674031,101930.0,101920.0,0.10041524]
[1747080168463,0.42395086,101930.0,101920.0,0.33755899]
[1747080168673,0.40542363,101930.0,101920.0,0.12238658]
[1747080169832,0.75245662,101930.0,101920.0,0.10628658]
[1747080170883,0.40542363,101930.0,101920.0,0.10628658]
[1747080171464,0.75245662,101930.0,101920.0,0.09128658]
[1747080171666,0.76795662,101930.0,101920.0,0.09128658]
[1747080171846,0.76795662,101930.0,101920.0,0.08268945]
[1747080172045,0.76795662,101930.0,101920.0,0.09128658]
[1747080172277,0.75245662,101930.0,101920.0,0.09128658]
[1747080172767,1.07783092,101930.0,101920.0,0.08268945]
[1747080172970,1.07783092,101930.0,101920.0,0.09128658]
[1747080173403,1.71783092,101930.0,101920.0,0.08268945]
[1747080173678,2.01783092,101930.0,101920.0,0.08268945]
[1747080174307,2.01583092,101930.0,101920.0,0.04668945]
[1747080174520,2.01583092,101930.0,101920.0,0.05768945]
[1747080174741,2.01683092,101930.0,101920.0,0.05568945]
[1747080174964,1.66979793,101930.0,101920.0,0.05568945]
[1747080175184,2.02583092,101930.0,101920.0,0.00148919]
[1747080175385,2.02983092,101930.0,101920.0,0.00148919]
[1747080175794,2.45387092,101930.0,101920.0,0.00148919]
[1747080178764,2.46841177,101930.0,101920.0,0.00148919]
[1747080178986,2.51544476,101930.0,101920.0,0.00148919]
[1747080179210,2.51544476,101930.0,101880.0,0.10256373]
[1747080179211,0.21591844,101890.0,101880.0,0.10256373]
[1747080179441,0.95883143,101890.0,101880.0,0.09411339]
[1747080179649,0.95883143,101890.0,101880.0,0.08741052]
[1747080180556,0.61263844,101890.0,101880.0,0.3390199]
[1747080180784,0.61263844,101890.0,101880.0,0.06404392]
[1747080180963,0.61263844,101890.0,101880.0,0.2603533]
[1747080181260,0.96167143,101890.0,101880.0,0.2743533]
[1747080181439,0.61363844,101890.0,101880.0,0.2363533]
[1747080181682,0.61263844,101890.0,101880.0,0.2603533]
[1747080181931,0.61463844,101890.0,101880.0,0.2743533]
[1747080182099,0.61463844,101890.0,101880.0,0.07804392]
[1747080182310,0.61463844,101890.0,101880.0,0.2743533]
[1747080182544,0.61463844,101890.0,101880.0,0.07804392]
[1747080182748,0.61463844,101890.0,101880.0,0.2743533]
[1747080182967,0.96167143,101890.0,101880.0,0.07804392]
[1747080183191,0.61463844,101890.0,101880.0,0.07804392]
[1747080184243,0.61463844,101890.0,101880.0,0.2743533]
[1747080184452,0.21891844,101890.0,101880.0,0.2743533]
[1747080184666,0.21121363,101890.0,101880.0,0.45218586]
[1747080184872,0.03244158,101890.0,101880.0,0.45218586]
[1747080185086,0.24065589,101890.0,101880.0,0.45218586]
[1747080185299,0.003,101890.0,101880.0,0.79921885]
[1747080185478,0.02262775,101890.0,101880.0,0.39965284]
[1747080185742,0.03244187,101890.0,101880.0,0.39965284]
[1747080186157,0.04225618,101890.0,101880.0,0.39965284]
[1747080186364,0.23854629,101890.0,101880.0,0.39965284]
[1747080186585,0.23854696,101890.0,101880.0,0.38002297]
[1747080186794,0.22873304,101890.0,101880.0,0.38002297]
[1747080186994,0.22873304,101890.0,101880.0,0.38983815]
[1747080187643,0.22873304,101890.0,101880.0,0.38983824]
[1747080189915,0.21891892,101890.0,101880.0,0.06944679]
[1747080190137,0.21891892,101890.0,101880.0,0.07804392]
[1747080191043,0.56595191,101890.0,101880.0,0.07804392]
[1747080191559,0.56595191,101890.0,101880.0,0.03814679]
[1747080191802,0.76411191,101890.0,101880.0,0.03814679]
[1747080192045,0.76411191,101890.0,101880.0,0.04674392]
[1747080192498,1.53156621,101890.0,101880.0,0.03814679]
[1747080192704,2.1835992,101890.0,101880.0,0.03814679]
[1747080192906,1.83656621,101890.0,101880.0,0.03814679]
[1747080193259,2.26072621,101890.0,101880.0,0.03814679]
[1747080193476,2.62130005,101890.0,101880.0,0.01414679]
[1747080193779,2.63468338,101890.0,101880.0,0.01214679]
[1747080193964,2.64368338,101890.0,101880.0,0.01314679]
[1747080194179,2.64268338,101890.0,101880.0,0.00114679]
[1747080194926,2.29565039,101890.0,101880.0,0.00114679]
[1747080195152,2.15852954,101890.0,101880.0,0.00114679]
[1747080195353,2.12712621,101890.0,101880.0,0.00114679]
[1747080195556,1.43296621,101890.0,101880.0,0.00114679]
[1747080195760,1.43296621,101890.0,101880.0,0.22845617]
[1747080195761,0.84823892,101890.0,101880.0,0.22845617]
[1747080195966,0.01,101890.0,101880.0,0.77160788]
[1747080196178,0.02962775,101890.0,101880.0,0.4086356]
[1747080196425,0.03944196,101890.0,101880.0,0.4086356]
[1747080196635,0.002,101890.0,101880.0,0.75466859]
[1747080196817,0.39444828,101920.0,101910.0,0.02419713]
[1747080197141,0.59300828,101920.0,101910.0,0.02419713]
[1747080197343,0.59300828,101920.0,101910.0,0.03959713]
[1747080198017,0.60000828,101920.0,101910.0,0.04059713]
[1747080198249,0.007,101920.0,101910.0,0.7073459]
[1747080198447,0.02662197,101920.0,101910.0,0.38778721]
[1747080198646,0.03643319,101920.0,101910.0,0.38778721]
[1747080199068,0.007,101920.0,101910.0,0.72778721]
[1747080199309,0.02662197,101920.0,101910.0,0.72778721]
[1747080199518,0.01781084,101920.0,101910.0,0.73878721]
[1747080199726,0.01781084,101920.0,101910.0,1.0858202]
[1747080199936,0.01681084,101920.0,101910.0,1.0748202]
[1747080200167,0.00981084,101920.0,101910.0,1.0738202]
[1747080200391,0.001,101920.0,101910.0,1.0958202]
[1747080200600,0.002,101920.0,101910.0,1.1008202]
[1747080200810,0.002,101920.0,101910.0,1.11036105]
[1747080200996,0.004,101920.0,101910.0,1.1118202]
[1747080201661,0.01381084,101920.0,101910.0,1.08617258]
[1747080202106,0.01381075,101920.0,101910.0,1.08617258]
[1747080202758,0.004,101920.0,101910.0,1.08617258]
[1747080204586,0.004,101920.0,101910.0,1.48617258]
[1747080204755,0.01381075,101920.0,101910.0,1.48617258]
[1747080205337,0.02362169,101920.0,101910.0,1.48617258]
[1747080205545,0.01381075,101920.0,101910.0,1.48617258]
[1747080206597,0.02362169,101920.0,101910.0,1.48617258]
[1747080206999,0.01381075,101920.0,101910.0,1.48617258]
[1747080207403,0.02362169,101920.0,101910.0,1.48617258]
[1747080207606,0.01381075,101920.0,101910.0,1.58202688]
[1747080207842,0.004,101920.0,101910.0,1.58202688]
[1747080207993,0.01381094,101920.0,101910.0,1.58202688]
[1747080208598,0.01381084,101920.0,101910.0,1.58202688]
[1747080209183,0.56688787,101920.0,101910.0,0.04659713]
[1747080209414,0.76432787,101920.0,101910.0,0.04659713]
[1747080210182,0.41729488,101920.0,101910.0,0.04659713]
[1747080216320,0.76432787,101920.0,101910.0,0.04659713]
[1747080216532,0.76432787,101920.0,101910.0,0.038]
[1747080216749,1.17618217,101920.0,101910.0,0.038]
[1747080216910,1.17618217,101920.0,101910.0,0.04659713]
[1747080219300,1.16018217,101920.0,101910.0,0.04659713]
[1747080222687,1.16018217,101920.0,101910.0,0.038]
[1747080222899,1.53248217,101920.0,101910.0,0.038]
[1747080228118,1.89405601,101920.0,101910.0,0.038]
[1747080228321,1.59405601,101920.0,101910.0,0.038]
[1747080228482,1.60877804,101920.0,101910.0,0.038]
[1747080228668,1.26074505,101920.0,101910.0,0.016]
[1747080229084,1.26474505,101920.0,101910.0,0.016]
[1747080229332,0.21589726,101900.0,101890.0,0.00859713]
[1747080229482,0.95677025,101900.0,101890.0,0.00859713]
[1747080230646,0.95777025,101900.0,101890.0,0.01459713]
[1747080230888,0.95777025,101900.0,101890.0,0.006]
[1747080231167,0.95777025,101900.0,101890.0,0.01459713]
[1747080231375,0.95777025,101900.0,101890.0,0.006]
[1747080231591,0.95877025,101900.0,101890.0,0.018]
[1747080232517,0.95877025,101900.0,101890.0,0.02659713]
[1747080233288,0.95677025,101900.0,101890.0,0.018]
[1747080233702,0.95677025,101900.0,101890.0,0.02659713]
[1747080235063,0.60973726,101900.0,101890.0,0.02659713]
[1747080235407,0.41365726,101900.0,101890.0,0.02659713]
[1747080235609,0.60973726,101900.0,101890.0,0.08020234]
[1747080236214,0.60977726,101900.0,101890.0,0.08020234]
[1747080237090,0.60977726,101900.0,101890.0,0.05789713]
[1747080238948,0.95681025,101900.0,101890.0,0.04159713]
[1747080239161,0.95681025,101900.0,101890.0,0.02659713]
[1747080239385,0.95681025,101900.0,101890.0,0.018]
[1747080241781,0.60977726,101900.0,101890.0,0.018]
[1747080242874,0.95681025,101900.0,101890.0,0.018]
[1747080244444,1.40856455,101900.0,101890.0,0.018]
[1747080244645,2.0381054,101900.0,101890.0,0.018]
[1747080244853,2.3381054,101900.0,101890.0,0.018]
[1747080245058,2.0481054,101900.0,101890.0,0.018]
[1747080245262,0.6,101890.0,101880.0,0.00014679]
[1747080245531,2.49113502,101890.0,101880.0,0.00014679]
[1747080245865,0.90301502,101860.0,101850.0,0.04610095]
[1747080246064,1.40760932,101860.0,101850.0,0.04624719]
[1747080246210,1.4217755,101860.0,101850.0,0.04624719]
[1747080246418,1.7217755,101860.0,101850.0,0.04624719]
[1747080246635,1.7382755,101860.0,101850.0,0.04624719]
[1747080246841,1.75281635,101860.0,101850.0,0.00014624]
[1747080247355,1.45148873,101860.0,101850.0,0.00014624]
[1747080247557,1.73758873,101860.0,101850.0,0.01814624]
[1747080247899,1.73758873,101860.0,101850.0,0.01214624]
[1747080248103,1.73658873,101860.0,101850.0,0.00014624]
[1747080248457,1.73758873,101860.0,101850.0,0.00014624]
[1747080248906,1.63008788,101860.0,101850.0,0.00014624]
[1747080249115,2.03184788,101860.0,101850.0,0.00114624]